bitfinex/quotes_ETHUSD_20250804
["timestamp","ask_amount","ask_price","bid_price","bid_amount"]
[1754317318141,0.1368,3656.1,3656.0,3.62440363]
[1754317318340,0.1368,3656.1,3656.0,4.09550363]
[1754317318744,0.1368,3656.1,3656.0,3.62440363]
[1754317319055,0.1368,3656.1,3656.0,4.09550363]
[1754317319767,0.1368,3656.1,3656.0,3.62440363]
[1754317320372,0.1368,3656.1,3656.0,4.09550363]
[1754317320686,0.821878,3657.1,3657.0,2.73448181]
[1754317320820,0.821878,3657.1,3656.8,2.73459299]
[1754317320821,0.1368,3656.6,3656.4,0.4711]
[1754317321021,1.2067,3658.5,3656.5,0.4711]
[1754317321226,0.1368,3657.1,3657.0,2.73448181]
[1754317321435,0.1368,3657.1,3657.0,3.54218181]
[1754317322033,0.1368,3657.1,3657.0,4.00888181]
[1754317322264,4.483,3657.7,3657.2,2.73431958]
[1754317322435,3.0,3657.6,3656.5,0.1368]
[1754317322636,0.1368,3657.1,3657.0,2.73445548]
[1754317322843,0.1368,3657.1,3657.0,3.54215548]
[1754317323228,0.1368,3657.1,3657.0,4.00885548]
[1754317323428,0.1368,3657.1,3657.0,3.54215548]
[1754317323967,0.1368,3657.1,3657.0,4.00885548]
[1754317324443,0.1368,3657.1,3657.0,3.54215548]
[1754317325577,0.1368,3657.1,3657.0,4.00885548]
[1754317325877,0.1368,3657.1,3657.0,4.68319794]
[1754317326441,3.0,3657.9,3657.0,1.94874246]
[1754317326644,3.0,3657.9,3657.1,0.8077]
[1754317326983,0.1368,3657.7,3657.2,0.4667]
[1754317327180,0.1368,3657.7,3657.6,2.73403324]
[1754317327355,0.1368,3657.7,3657.3,0.8077]
[1754317327554,0.1368,3657.5,3656.8,0.1368]
[1754317327889,2.46527743,3657.5,3656.8,0.1368]
[1754317328098,2.73438164,3657.2,3656.8,0.1368]
[1754317328375,0.1368,3656.9,3656.3,3.54264132]
[1754317328579,4.467,3657.4,3656.0,0.40955036]
[1754317328580,0.1368,3656.7,3656.0,0.40955036]
[1754317328882,0.1368,3656.3,3656.2,2.73508013]
[1754317329044,0.1368,3656.3,3656.2,3.54278013]
[1754317329248,0.1368,3656.3,3656.1,2.73514547]
[1754317329558,0.1368,3656.3,3656.2,2.73508013]
[1754317329779,0.1368,3656.3,3656.2,3.54278013]
[1754317329966,3.0,3657.3,3656.7,2.7346925]
[1754317330162,3.0,3657.4,3656.8,2.73457317]
[1754317330502,3.0,3657.4,3656.7,0.8077]
[1754317330503,3.0,3657.2,3656.9,2.73455121]
[1754317330660,0.1,3658.1,3656.7,3.54238982]
[1754317330661,0.1368,3656.8,3656.7,0.8077]
[1754317330870,0.1368,3656.8,3655.8,0.8077]
[1754317331205,3.0,3657.1,3656.5,2.73479811]
[1754317331352,0.1368,3656.4,3656.3,3.20170533]
[1754317331552,3.0,3657.4,3656.3,0.4667]
[1754317331780,3.0,3657.2,3656.8,2.73456756]
[1754317331979,0.1368,3656.6,3656.3,0.4667]
[1754317332188,0.1368,3656.8,3656.4,0.4667]
[1754317332351,4.474,3657.4,3657.3,2.73425751]
[1754317332549,2.73370988,3658.1,3657.0,0.4667]
[1754317332749,30.0,3658.0,3657.3,0.8077]
[1754317335059,5.5724,3658.7,3657.7,0.1368]
[1754317335257,0.1368,3658.4,3657.2,0.8077]
[1754317335554,0.1368,3657.5,3657.4,2.73418275]
[1754317336164,0.1368,3657.5,3657.4,3.54188275]
[1754317336379,4.472,3658.2,3657.4,3.5418812]
[1754317336581,4.472,3658.2,3657.4,0.8077]
[1754317336831,4.1034,3658.7,3657.4,0.8077]
[1754317337093,3.0,3658.5,3657.8,2.73382102]
[1754317337411,3.0,3658.5,3657.7,0.8077]
[1754317337758,5.73339236,3658.5,3657.9,2.73380283]
[1754317338191,5.73339236,3658.5,3657.7,0.8077]
[1754317338500,4.469,3658.6,3657.8,0.4667]
[1754317338660,6.565,3658.8,3657.9,0.8077]
[1754317338991,6.565,3658.8,3657.4,2.73412629]
[1754317338992,5.73330066,3658.6,3657.6,2.73398811]
[1754317339333,2.73371153,3658.1,3657.5,0.8077]
[1754317339494,3.0,3658.2,3657.5,0.8077]
[1754317339802,4.467,3658.2,3657.6,0.4667]
[1754317339955,4.467,3658.2,3657.7,2.73390027]
[1754317340156,0.6565,3658.8,3657.8,1.2744]
[1754317340366,3.0,3658.6,3658.2,2.73353179]
[1754317340593,3.0,3658.6,3658.0,2.73373428]
[1754317340594,10.19831364,3658.6,3657.9,2.73380901]
[1754317340863,3.0,3658.4,3657.4,0.4667]
[1754317341101,3.0,3658.2,3657.4,0.4667]
[1754317341262,3.0,3659.1,3657.5,3.54180799]
[1754317341461,3.0,3659.1,3657.4,0.4667]
[1754317341462,3.0,3659.0,3657.8,2.73383978]
[1754317341687,3.0,3658.8,3658.5,2.73329484]
[1754317341901,3.0,3658.8,3657.9,0.4667]
[1754317342101,4.477,3658.7,3658.2,3.54121958]
[1754317342305,2.73336136,3658.5,3657.6,2.73401957]
[1754317342605,2.7335133,3658.3,3657.7,2.73394777]
[1754317342758,3.1,3658.6,3657.3,1.2744]
[1754317342964,3.1,3658.6,3657.4,0.8077]
[1754317342965,30.0,3658.5,3657.4,0.8077]
[1754317343297,4.476,3658.4,3657.8,2.73380938]
[1754317343511,30.0,3658.3,3657.7,2.73393775]
[1754317343690,5.59968958,3658.4,3657.8,2.73382893]
[1754317343868,5.59968958,3658.4,3657.7,2.7339404]
[1754317344198,2.73360376,3658.2,3657.5,3.2007918]
[1754317344420,8.33313543,3658.4,3657.6,2.73402703]
[1754317344626,31.10664358,3658.3,3657.6,2.73402703]
[1754317344938,2.73362529,3658.2,3657.6,2.73403014]
[1754317345295,2.73360963,3658.2,3657.6,2.73402445]
[1754317345621,1.10664358,3658.3,3657.7,0.8077]
[1754317345789,1.10664358,3658.3,3657.9,2.73380761]
[1754317345989,4.468,3658.2,3658.0,0.8077]
[1754317346195,4.467,3658.1,3657.7,2.73394292]
[1754317346500,0.1368,3657.9,3657.7,2.73395728]
[1754317346709,0.1368,3657.9,3657.6,2.73401375]
[1754317346931,0.1368,3657.9,3657.1,0.1368]
[1754317346932,0.1368,3657.7,3657.5,2.7340938]
[1754317347090,0.1368,3657.7,3657.1,0.1368]
[1754317347289,2.73410799,3657.5,3656.6,2.73475635]
[1754317347522,3.45415458,3657.4,3656.7,2.73464368]
[1754317347915,4.464,3657.3,3656.7,2.73468391]
[1754317348120,7.19826469,3657.3,3656.4,0.8077]
[1754317348425,4.464,3657.3,3656.7,2.73465081]
[1754317348803,4.464,3657.3,3656.4,0.8077]
[1754317349003,4.464,3657.3,3656.8,2.73460674]
[1754317349205,4.461,3657.2,3656.9,0.8077]
[1754317349416,4.461,3657.2,3656.4,0.8077]
[1754317349615,34.459,3657.1,3656.1,0.4667]
[1754317349848,2.73479166,3656.6,3656.0,0.8077]
[1754317350021,4.459,3656.9,3656.1,0.4667]
[1754317350222,3.1,3657.9,3657.3,2.73425153]
[1754317350413,3.0,3657.4,3656.9,0.8077]
[1754317350613,4.459,3657.3,3657.0,3.54215879]
[1754317350917,4.459,3657.2,3656.7,0.4667]
[1754317351246,33.0,3657.1,3655.9,0.4555]
[1754317351419,5.73456672,3656.9,3656.2,2.73503004]
[1754317351742,4.461,3656.8,3656.1,2.73513954]
[1754317351929,7.19565491,3656.8,3656.1,2.73513954]
[1754317352135,32.73472577,3656.7,3656.0,2.73521658]
[1754317352332,4.461,3656.8,3655.9,0.4555]
[1754317352333,4.461,3656.8,3656.3,2.73494011]
[1754317352647,30.0,3656.7,3655.9,0.4555]
[1754317352852,2.7348405,3656.6,3655.9,3.19079328]
[1754317353049,2.73507207,3656.3,3655.8,0.8641]
[1754317353347,4.457,3656.2,3655.5,0.8641]
[1754317353546,4.457,3656.1,3655.5,0.8641]
[1754317353748,4.457,3656.1,3656.0,2.73522975]
[1754317354059,2.73492174,3656.5,3655.7,3.5995491]
[1754317354279,30.0,3656.4,3655.7,0.8641]
[1754317354407,2.73500533,3656.3,3655.7,0.8641]
[1754317354606,3.88190013,3656.5,3655.4,0.4555]
[1754317354607,2.73515494,3656.1,3655.5,0.8641]
[1754317355058,4.452,3656.0,3655.5,0.8641]
[1754317355265,4.452,3656.0,3655.2,0.002]
[1754317355414,2.73571561,3655.4,3655.2,0.002]
[1754317355614,4.453,3655.4,3655.2,0.002]
[1754317355930,32.73575356,3655.3,3655.2,0.002]
[1754317356123,3.0,3655.6,3655.2,0.002]
[1754317356314,34.452,3655.5,3655.2,0.002]
[1754317356512,3.0,3655.7,3655.2,0.002]
[1754317356840,3.8818494,3656.5,3655.6,2.73547289]
[1754317357040,5.73508185,3656.2,3655.5,2.73557992]
[1754317357237,0.1368,3655.5,3655.3,3.59982864]
[1754317357436,4.451,3655.4,3655.2,0.002]
[1754317357642,30.0,3655.3,3655.2,0.002]
[1754317358249,30.1368,3655.3,3655.2,0.002]
[1754317358455,0.1368,3655.3,3655.2,0.002]
[1754317359486,4.5868,3655.3,3655.2,0.002]
[1754317359770,4.5858,3655.3,3655.2,4.0574284]
[1754317359970,0.1368,3655.3,3655.2,4.0574284]
[1754317360142,1.14697027,3656.5,3656.0,2.73521609]
[1754317360340,34.449,3656.4,3656.0,2.73521609]
[1754317360538,0.1368,3656.1,3656.0,2.73521609]
[1754317360743,0.1368,3656.2,3656.1,0.8641]
[1754317360947,4.5858,3656.3,3656.2,2.73508013]
[1754317361276,0.1368,3656.3,3656.2,4.05468013]
[1754317361572,0.1368,3656.3,3656.2,3.59918013]
[1754317361771,0.1368,3656.3,3656.2,4.05468013]
[1754317362074,0.1368,3656.3,3656.2,4.73366492]
[1754317362275,0.1368,3656.3,3656.2,4.05468013]
[1754317363146,3.0,3657.4,3656.2,4.05468013]
[1754317363345,0.1368,3656.6,3656.5,2.73485573]
[1754317363594,4.444,3657.4,3656.5,1.3196]
[1754317363757,4.444,3657.4,3656.6,0.8641]
[1754317364082,4.444,3657.4,3656.6,3.59887156]
[1754317364083,30.0,3657.3,3656.6,3.59887156]
[1754317364288,2.73449209,3657.0,3656.3,2.7350045]
[1754317364490,37.17755958,3656.9,3656.1,0.8641]
[1754317364687,3.0,3656.8,3655.5,0.8641]
[1754317364850,0.1368,3656.2,3655.9,2.73525028]
[1754317365049,4.445,3656.1,3655.9,2.73525511]
[1754317365281,4.445,3656.1,3655.9,0.8641]
[1754317365486,0.1368,3656.0,3655.4,0.4555]
[1754317365689,4.445,3656.1,3655.9,0.8641]
[1754317366056,30.0,3655.9,3655.2,2.73775655]
[1754317366284,0.1368,3655.3,3655.2,2.73775655]
[1754317366587,4.5798,3655.3,3655.2,0.002]
[1754317366788,4.5798,3655.3,3655.2,3.6019284]
[1754317366953,0.1368,3655.3,3655.2,4.0574284]
[1754317367154,0.1,3657.0,3655.2,4.40254605]
[1754317367363,3.0,3656.3,3655.7,2.73543104]
[1754317367787,0.1368,3655.8,3655.2,0.002]
[1754317368088,0.1368,3655.3,3655.2,0.002]
[1754317368656,4.5788,3655.3,3655.2,4.0574284]
[1754317368984,4.5808,3655.3,3655.2,4.0574284]
[1754317369153,0.1368,3655.3,3655.2,4.0574284]
[1754317369355,4.5798,3655.3,3655.2,1.3216]
[1754317369553,4.5798,3655.3,3655.2,0.8661]
[1754317369807,4.5798,3655.3,3655.2,3.6019284]
[1754317370093,0.1368,3655.3,3655.2,3.6019284]
[1754317370292,0.1368,3655.3,3655.2,4.0574284]
[1754317370788,4.5768,3655.3,3655.2,4.0574284]
[1754317370950,4.5758,3655.3,3655.2,4.0574284]
[1754317371154,0.1368,3655.3,3655.2,4.0574284]
[1754317371370,0.1368,3655.3,3655.2,4.73676564]
[1754317371599,4.438,3655.5,3655.4,2.73567872]
[1754317371888,4.438,3655.5,3655.4,4.05527872]
[1754317372966,0.1368,3655.6,3655.2,0.002]
[1754317373157,4.434,3655.5,3655.4,2.73567872]
[1754317373359,4.434,3655.5,3655.3,4.0553423]
[1754317373360,0.1368,3655.4,3655.3,4.0553423]
[1754317374094,4.5698,3655.4,3655.3,3.5998423]
[1754317375074,6.57,3656.4,3655.5,2.73557071]
[1754317375288,0.1368,3655.6,3655.3,1.3196]
[1754317375477,4.5698,3655.6,3655.5,2.73560388]
[1754317376180,4.5698,3655.6,3655.4,2.73565267]
[1754317376395,4.5698,3655.6,3655.2,2.73782521]
[1754317376396,4.5698,3655.6,3655.5,2.73560388]
[1754317376694,0.1368,3655.6,3655.5,2.73560388]
[1754317376999,4.5698,3655.6,3655.3,2.73575356]
[1754317377224,4.5698,3655.6,3655.4,2.73560822]
[1754317377364,0.1368,3655.6,3655.5,2.73560388]
[1754317377563,0.1368,3655.6,3655.5,4.05520388]
[1754317377564,4.5708,3655.6,3655.5,4.05520388]
[1754317377892,4.5698,3655.6,3655.5,4.05520388]
[1754317378093,0.1368,3655.6,3655.5,3.59970388]
[1754317378301,0.1368,3655.6,3655.2,0.002]
[1754317378302,4.5698,3655.6,3655.2,0.002]
[1754317378467,0.55,3655.2,3654.0,2.73672561]
[1754317378798,3.0,3655.0,3653.7,0.8641]
[1754317378962,3.0,3654.8,3653.7,0.8641]
[1754317379162,3.0,3654.6,3654.0,2.73666283]
[1754317379403,7.97529566,3654.6,3654.0,2.73666283]
[1754317379600,2.23900033,3654.6,3653.7,0.8641]
[1754317379773,3.0,3655.1,3654.2,0.8641]
[1754317380095,37.19599365,3655.0,3654.2,3.60066669]
[1754317380302,3.0,3654.8,3654.3,2.73645445]
[1754317380468,3.0,3654.8,3654.2,2.73655517]
[1754317380797,3.0,3654.8,3654.1,0.002]
[1754317380798,3.0,3654.8,3654.4,2.73642664]
[1754317380996,3.746,3654.8,3654.1,0.002]
[1754317381184,3.0,3654.6,3654.1,0.002]
[1754317381389,4.457,3654.5,3654.1,0.002]
[1754317382099,1.568322,3654.8,3654.2,0.8094]
[1754317382279,4.457,3654.4,3654.3,2.7365022]
[1754317382479,4.455,3654.4,3654.3,3.5459022]
[1754317382699,4.454,3654.4,3654.3,3.9931022]
[1754317382898,3.19261216,3655.5,3654.8,2.73611027]
[1754317383108,3.0,3655.3,3654.8,2.73610911]
[1754317383405,30.0,3655.2,3654.6,2.73625478]
[1754317383574,5.72866186,3655.3,3654.4,0.8094]
[1754317383772,30.0,3655.2,3654.7,2.73613637]
[1754317383974,0.8094,3655.6,3654.9,2.735998]
[1754317384192,3.0,3655.4,3654.1,2.73858915]
[1754317384503,2.73611042,3654.9,3654.1,2.73863018]
[1754317384704,10.18918309,3654.8,3654.1,2.73863018]
[1754317384866,1.29251715,3654.7,3654.1,0.002]
[1754317385206,1.29251715,3654.7,3654.2,2.73656423]
[1754317385385,1.29251715,3654.7,3654.1,0.002]
[1754317385708,3.0,3655.0,3654.2,1.2566]
[1754317385903,4.451,3654.6,3654.3,2.7365022]
[1754317386108,4.451,3654.6,3654.4,2.73642681]
[1754317386271,4.451,3654.6,3654.5,3.54575244]
[1754317386467,4.451,3654.6,3654.4,2.73641354]
[1754317386673,4.8961,3654.6,3654.2,2.73652564]
[1754317387006,4.8961,3654.6,3654.2,2.73657344]
[1754317387504,0.822257,3655.1,3654.8,2.73607731]
[1754317387709,3.0,3655.6,3654.8,2.73610822]
[1754317387893,2.73576964,3655.3,3654.6,2.7362312]
[1754317388081,3.0,3655.2,3654.1,0.002]
[1754317388405,30.0,3655.1,3654.1,0.002]
[1754317388570,0.1368,3654.3,3654.2,3.99317708]
[1754317388971,4.5858,3654.3,3654.2,3.99317708]
[1754317389906,4.5838,3654.3,3654.2,3.54597708]
[1754317390607,4.5838,3654.3,3654.1,0.002]
[1754317390982,2.73657708,3654.2,3653.5,0.1368]
[1754317391293,5.73770087,3652.7,3652.6,0.002]
[1754317391605,3.0,3652.6,3651.4,0.8094]
[1754317391779,3.1368,3652.2,3651.4,0.8094]
[1754317392309,10.40287568,3652.2,3651.4,3.54806135]
[1754317392523,10.40087568,3652.2,3651.4,0.8094]
[1754317392819,0.1368,3652.2,3651.8,2.73836863]
[1754317393020,0.1368,3652.2,3651.7,0.8114]
[1754317393216,4.6618,3652.2,3651.7,0.002]
[1754317393419,0.1368,3652.2,3651.7,0.002]
[1754317393920,4.6668,3652.2,3652.1,3.54755066]
[1754317394223,6.575,3653.1,3652.3,3.0]
[1754317394429,4.535,3653.0,3652.8,2.73755335]
[1754317394616,4.535,3653.0,3652.9,2.73755098]
[1754317394812,4.6718,3653.0,3652.9,2.73755098]
[1754317395020,0.1368,3653.0,3652.9,3.99415098]
[1754317395323,4.6708,3653.0,3652.9,3.99415098]
[1754317395713,4.6678,3653.0,3652.9,4.27655821]
[1754317395909,0.1368,3653.0,3652.9,4.27655821]
[1754317396420,4.529,3653.3,3653.2,2.73732617]
[1754317396624,0.1368,3653.3,3653.2,3.99392617]
[1754317396810,4.6648,3653.4,3653.3,2.73725125]
[1754317397336,4.6648,3653.4,3653.1,2.73738153]
[1754317397499,4.6648,3653.4,3653.2,2.73731919]
[1754317397706,0.1368,3653.2,3653.1,2.7373995]
[1754317398014,0.1368,3653.2,3652.8,2.73762593]
[1754317398214,0.1368,3653.2,3652.7,0.4472]
[1754317398215,4.528,3653.4,3653.0,2.73741841]
[1754317398414,4.9808,3653.4,3652.9,2.73753852]
[1754317398615,4.9808,3653.4,3653.3,2.73725125]
[1754317398916,0.1368,3652.8,3652.4,3.0]
[1754317399117,0.1368,3652.8,3652.7,2.73770087]
[1754317399315,0.1368,3652.8,3652.3,2.87480033]
[1754317399316,4.522,3652.9,3652.1,1e-08]
[1754317399492,4.522,3652.9,3652.8,2.73762593]
[1754317399834,4.522,3652.9,3652.4,2.73786262]
[1754317400044,4.9742,3652.9,3652.1,1e-08]
[1754317400187,0.1368,3652.2,3652.1,1e-08]
[1754317400391,34.6568,3652.2,3652.1,1e-08]
[1754317400591,37.6568,3652.2,3652.1,1e-08]
[1754317400832,37.6568,3652.2,3651.3,2.73872499]
[1754317400990,32.72866186,3652.1,3651.3,2.73867634]
[1754317401192,0.1368,3651.4,3651.3,2.73874372]
[1754317401529,0.1368,3651.4,3651.3,2.73875058]
[1754317401712,0.1368,3651.4,3651.3,3.54815058]
[1754317402114,0.1368,3651.4,3651.3,2.73875058]
[1754317402524,0.1368,3651.4,3651.3,3.99535058]
[1754317402690,0.1,3653.4,3652.3,2.73796284]
[1754317402891,0.822922,3652.4,3652.2,2.73806466]
[1754317403091,4.521,3652.3,3652.2,0.8094]
[1754317403323,4.521,3652.3,3652.2,3.54747568]
[1754317403324,4.6578,3652.3,3652.2,3.54747568]
[1754317403530,0.1368,3652.3,3652.2,3.54747568]
[1754317403707,0.1368,3652.3,3652.2,3.99467568]
[1754317403909,0.1368,3652.3,3652.2,4.61796001]
[1754317404230,0.1368,3652.3,3651.6,2.73849534]
[1754317404231,0.822625,3653.7,3649.3,0.13564146]
[1754317404466,13.67284979,3651.8,3649.4,1.2566]
[1754317404632,39.44928498,3651.7,3649.3,2.74025155]
[1754317404929,3.0,3651.5,3649.6,2.7400263]
[1754317405230,13.67284979,3650.1,3647.7,2.74144691]
[1754317405429,1.638,3651.0,3646.3,13.67484979]
[1754317405430,3.0,3649.9,3648.9,0.8094]
[1754317405629,3.0,3649.7,3648.4,0.8094]
[1754317405831,2.74017646,3649.4,3648.4,0.8094]
[1754317406032,34.61,3649.3,3648.4,0.8094]
[1754317406233,4.61,3649.3,3648.4,0.8094]
[1754317406531,2.72866186,3649.8,3646.5,2.74235568]
[1754317406532,2.7406644,3648.8,3646.5,2.74235568]
[1754317406835,4.93706644,3648.7,3648.1,2.74108905]
[1754317407035,0.1,3649.6,3647.7,0.4472]
[1754317407036,0.55,3649.5,3647.7,0.4472]
[1754317407236,34.681,3649.4,3648.1,0.8094]
[1754317407398,37.681,3649.3,3648.1,0.8094]
[1754317407599,3.0,3649.1,3647.5,0.4472]
[1754317407823,30.0,3649.0,3647.8,0.8094]
[1754317408007,2.72866186,3648.9,3647.9,2.74130321]
[1754317408211,3.0,3648.7,3647.8,0.8094]
[1754317408411,4.68,3648.6,3648.2,2.74103123]
[1754317408624,4.68,3648.9,3648.7,2.74064247]
[1754317408824,4.68,3648.9,3648.3,1.2566]
[1754317409137,4.678,3649.1,3648.4,0.8094]
[1754317409340,3.0,3649.7,3648.4,0.8094]
[1754317409638,4.677,3649.6,3648.5,0.4472]
[1754317409799,6.576,3650.2,3649.7,2.73993678]
[1754317409999,4.678,3650.3,3649.3,0.8094]
[1754317410229,0.099,3651.2,3650.3,2.73943821]
[1754317410230,4.679,3650.5,3650.3,2.73943821]
[1754317410415,2.73865185,3651.5,3650.6,2.73922436]
[1754317410600,0.94166519,3651.4,3650.4,0.8094]
[1754317410935,4.68,3651.4,3650.5,0.4472]
[1754317411138,4.68,3651.5,3651.2,2.7388254]
[1754317411352,4.68,3651.7,3650.6,0.8297]
[1754317411552,4.679,3651.7,3650.6,0.8297]
[1754317411719,2.73858484,3651.6,3650.7,2.7392007]
[1754317411902,4.01559662,3651.5,3650.2,2.73957591]
[1754317412113,4.01559662,3651.5,3650.1,0.8297]
[1754317412114,4.679,3651.5,3650.1,0.8297]
[1754317412514,3.0,3651.3,3649.7,2.73991321]
[1754317412714,2.73919295,3650.8,3649.8,2.73981393]
[1754317412940,7.42226593,3650.7,3649.8,2.73981393]
[1754317413250,2.73937743,3650.5,3649.7,2.73992692]
[1754317413439,5.72866186,3650.5,3649.3,0.442]
[1754317413734,2.73958878,3650.2,3649.1,0.8297]
[1754317413921,34.68,3650.1,3649.1,0.8297]
[1754317414124,30.0,3650.0,3649.4,2.74016846]
[1754317414449,30.0,3650.0,3648.6,5.5107]
[1754317414450,4.679,3649.9,3649.5,2.74007911]
[1754317414613,0.1368,3649.5,3649.0,3.31925227]
[1754317414813,0.1368,3649.5,3649.0,0.1368]
[1754317415022,0.1368,3649.1,3649.0,2.74047684]
[1754317415209,0.1368,3649.1,3649.0,4.01217684]
[1754317415752,0.1368,3649.2,3649.0,1.2717]
[1754317415953,4.679,3650.2,3649.1,1.2717]
[1754317416138,4.678,3650.2,3649.2,1.2717]
[1754317416324,0.1368,3649.7,3649.6,2.7400263]
[1754317416529,0.1368,3649.7,3649.6,4.0117263]
[1754317416840,0.823257,3651.0,3649.7,2.73995122]
[1754317417039,4.677,3651.3,3649.8,0.442]
[1754317417227,0.1368,3650.6,3650.5,2.73935077]
[1754317417413,0.1368,3650.6,3650.5,4.01105077]
[1754317417848,0.1368,3650.6,3650.5,4.68610049]
[1754317418013,0.1,3652.2,3650.5,1.2717]
[1754317418213,30.0,3652.1,3650.7,2.7392007]
[1754317418436,30.0,3652.1,3651.4,2.73860354]
[1754317418711,0.1368,3651.5,3651.2,0.8297]
[1754317418916,0.1368,3651.5,3651.0,2.87575151]
[1754317418917,0.1368,3651.5,3651.4,2.73867557]
[1754317419213,0.0868,3651.5,3651.4,3.13971313]
[1754317419492,0.1368,3652.0,3651.4,1.80953756]
[1754317419747,0.1368,3652.0,3651.9,2.73830061]
[1754317419935,3.0,3652.6,3651.9,1.2717]
[1754317420135,4.67,3652.7,3651.9,4.00994473]
[1754317420348,0.822746,3653.3,3652.7,2.73769947]
[1754317420562,30.0,3653.2,3652.8,2.73760903]
[1754317420849,4.665,3653.4,3652.8,2.73761186]
[1754317421023,0.1368,3652.9,3652.6,2.73771924]
[1754317421226,9.3178256,3653.9,3653.2,2.73731397]
[1754317421426,0.1368,3653.2,3653.0,2.73745471]
[1754317421609,0.1368,3653.2,3652.6,0.9665]
[1754317421610,0.1368,3653.2,3652.9,2.73753189]
[1754317422316,4.663,3653.5,3652.6,0.8297]
[1754317422541,4.663,3653.5,3652.9,2.73749148]
[1754317422751,5.67669169,3653.5,3652.6,0.8297]
[1754317423052,3.0,3653.8,3652.6,0.8297]
[1754317423265,4.657,3654.2,3652.7,0.442]
[1754317423567,3.0,3654.2,3652.9,2.73755098]
[1754317423794,4.656,3654.3,3654.2,2.73657579]
[1754317423945,0.822376,3654.6,3653.5,2.73709438]
[1754317424262,5.01185101,3654.5,3653.9,3.56648527]
[1754317424489,3.35585101,3654.5,3653.9,3.56648527]
[1754317424667,8.01185101,3654.5,3653.9,0.8297]
[1754317424866,5.01185101,3654.5,3653.5,1.2717]
[1754317425032,5.00785101,3654.5,3653.8,2.73681951]
[1754317425226,5.42441859,3654.4,3653.8,2.73681951]
[1754317425476,5.42441859,3654.4,3654.0,2.73669341]
[1754317425642,5.42441859,3654.4,3653.9,2.73678693]
[1754317425840,0.77441859,3654.4,3654.2,2.73652804]
[1754317426151,4.646,3654.5,3654.3,1.2717]
[1754317426567,4.645,3655.1,3654.4,0.8297]
[1754317426727,30.0,3655.0,3654.6,2.73622229]
[1754317426928,3.0,3654.9,3654.6,2.73626067]
[1754317427151,7.645,3655.1,3654.5,2.7362887]
[1754317427430,34.33808797,3655.0,3654.7,2.73620184]
[1754317427637,4.644,3655.6,3654.9,2.73601509]
[1754317427838,30.0,3655.5,3655.0,2.73596734]
[1754317428358,3.0,3655.5,3655.0,2.73596734]
[1754317428674,2.73610041,3654.9,3654.2,2.73656237]
[1754317428970,4.643,3654.8,3653.7,0.8297]
[1754317429135,4.642,3654.7,3653.7,0.8297]
[1754317429334,4.642,3654.7,3654.1,2.73659807]
[1754317429565,5.3798005,3654.7,3653.6,0.442]
[1754317429739,5.3798005,3654.7,3654.0,0.8297]
[1754317429947,5.3798005,3654.7,3654.1,2.7366015]
[1754317430157,5.3798005,3654.7,3654.0,0.8297]
[1754317430346,0.7378005,3654.7,3654.2,2.73655503]
[1754317430543,2.73606896,3654.9,3654.2,2.73655503]
[1754317430790,4.638,3654.6,3654.0,2.73666007]
[1754317430993,4.638,3654.6,3653.5,0.442]
[1754317431160,2.7364882,3654.4,3653.8,3.0]
[1754317431354,4.638,3654.6,3653.6,2.73701729]
[1754317431554,2.73654875,3654.3,3653.6,2.73701729]
[1754317431755,0.4638,3654.5,3653.0,2.73741885]
[1754317432008,4.632,3654.4,3654.0,2.73665269]
[1754317432170,4.632,3654.4,3654.0,3.56635269]
[1754317432358,0.1368,3654.1,3653.6,0.9665]
[1754317432696,0.001,3655.1,3654.0,2.73672687]
[1754317432890,0.1368,3654.6,3654.1,0.1368]
[1754317433089,0.1368,3654.6,3654.3,2.73643289]
[1754317433295,4.63,3654.7,3653.7,4.00862241]
[1754317433466,4.63,3654.7,3653.4,0.1368]
[1754317433467,0.1368,3654.3,3653.4,0.1368]
[1754317433674,0.1368,3653.7,3653.2,3.31607584]
[1754317434001,0.1368,3653.7,3653.3,1.2717]
[1754317434491,0.72416299,3653.7,3653.2,0.1368]
[1754317434727,0.1368,3653.3,3653.0,0.8297]
[1754317434901,0.1368,3653.3,3653.0,3.56716961]
[1754317435107,0.1368,3653.3,3653.0,0.8297]
[1754317435310,0.1368,3653.3,3653.0,3.56711844]
[1754317435510,0.1368,3653.3,3653.0,0.8297]
[1754317435911,0.1368,3653.3,3653.1,1.2717]
[1754317436108,0.1368,3653.3,3652.7,0.5788]
[1754317436314,0.1368,3653.3,3652.8,2.73758121]
[1754317436553,2.8741102,3653.3,3652.7,1.2717]
[1754317436698,0.1368,3653.3,3652.7,1.2717]
[1754317437034,0.1368,3653.3,3652.8,2.73757106]
[1754317437200,0.1368,3653.3,3653.1,2.7373276]
[1754317437402,0.1368,3653.3,3653.2,0.8297]
[1754317437827,0.1368,3653.3,3653.2,1.2717]
[1754317438129,0.1368,3653.3,3652.8,3.8297]
[1754317438456,0.1368,3653.3,3653.2,2.73732617]
[1754317438749,2.73664163,3654.2,3653.4,2.73711723]
[1754317438959,2.73626429,3654.7,3653.5,0.02737101]
[1754317439233,2.73626429,3654.7,3653.8,2.73687667]
[1754317439234,0.1368,3653.9,3653.8,2.73687667]
[1754317439535,4.611,3654.2,3654.0,2.73667184]
[1754317439721,0.1368,3654.1,3654.0,3.17867184]
[1754317440127,6.575,3655.0,3654.4,2.73642052]
[1754317440310,0.1368,3654.5,3654.4,0.442]
[1754317440511,4.61,3655.1,3654.9,2.73601339]
[1754317440722,0.001,3655.5,3654.6,2.73620464]
[1754317440944,7.81556185,3659.5,3658.3,2.7335101]
[1754317441235,0.1368,3659.4,3659.3,2.73276309]
[1754317441802,5.5943,3660.0,3658.7,5.73319789]